[Event "Czech Youth U16 Boys 2024"]
[Site "Kouty nad Desnou"]
[Date "2024.03.15"]
[Round "8.3"]
[White "Ulcak, Michael"]
[Black "Andrle, Filip"]
[Result "1-0"]
[ECO "B24"]
[WhiteElo "1929"]
[BlackElo "1943"]
[Annotator "RC"]
[PlyCount "127"]
[EventDate "2024.03.10"]
[EventType "swiss"]
[EventCountry "CZE"]
[SourceTitle "playchess.com"]
[Source "ChessBase"]
[SourceQuality "1"]
[TimeControl "40/5400+30:1800+30"]

1. e4 {[%emt 0:00:04]} c5 {[%emt 0:00:06]} 2. Nc3 {[%emt 0:00:08]} Nc6 {[%emt 0:00:05]} 3. Bb5 {[%emt 0:00:06]} Nd4 {[%emt 0:00:06]} 4. Bc4 {[%emt 0:00:06]} a6 {[%emt 0:00:57]} 5. d3 {[%emt 0:00:12]} b5 {[%emt 0:00:47]} 6. Bb3 {[%emt 0:00:56]} e6 {[%emt 0:02:45]} 7. Nge2 {[%emt 0:01:43]} Nxb3 {[%emt 0:04:58]} 8. axb3 {[%emt 0:00:27]} Bb7 {[%emt 0:00:45]} 9. O-O {[%emt 0:01:59]} d6 {[%emt 0:02:39]} 10. Ng3 {[%emt 0:01:45]} Nf6 {[%emt 0:02:55]} 11. f4 {[%emt 0:01:04]} Be7 {[%emt 0:03:08]} 12. f5 {[%emt 0:03:33]} e5 {[%emt 0:03:19]} 13. Bg5 {[%emt 0:02:34]} b4 {[%emt 0:02:17]} 14. Bxf6 {[%emt 0:02:40]} Bxf6 {[%emt 0:01:34]} 15. Nd5 {[%emt 0:00:38]} Bxd5 {[%emt 0:05:26]} 16. exd5 {[%emt 0:00:11]} Qb6 {[%emt 0:18:30]} 17. Kh1 {[%emt 0:00:56]} O-O-O {[%emt 0:21:41]} 18. Qg4 {[%emt 0:02:47]} Kb7 {[%emt 0:05:14]} 19. Ne4 {[%emt 0:02:03]} h5 {[%emt 0:00:35]} 20. Qe2 {[%emt 0:03:47]} Be7 {[%emt 0:01:11]} 21. Nd2 {[%emt 0:04:22]} Ra8 {[%emt 0:11:25]} 22. Nc4 {[%emt 0:02:22]} Qc7 {[%emt 0:00:33]} 23. Na5+ {[%emt 0:02:59]} Kc8 {[%emt 0:00:44]} 24. Ra4 {[%emt 0:04:02]} Qd7 {[%emt 0:02:26]} 25. Nc6 {[%emt 0:03:46]} Bd8 {[%emt 0:01:22]} 26. Qe4 {[%emt 0:04:22]} Rh6 {[%emt 0:00:41]} 27. Qc4 {[%emt 0:06:49]} a5 {[%emt 0:00:54]} 28. Nxb4 {[%emt 0:04:09]} Rf6 {[%emt 0:01:22]} 29. Nc6 {[%emt 0:05:14]} Rxf5 {[%emt 0:01:01]} 30. Raa1 {[%emt 0:00:57]} g6 {[%emt 0:05:22]} 31. Kg1 {[%emt 0:01:19]} Bg5 {[%emt 0:00:36]} 32. Qe4 {[%emt 0:02:07]} Rxf1+ {[%emt 0:00:23]} 33. Rxf1 {[%emt 0:00:25]} f5 {[%emt 0:00:05]} 34. Qf3 {[%emt 0:04:13]} h4 {[%emt 0:00:31]} 35. g4 {[%emt 0:00:47]} fxg4 {[%emt 0:00:45]} 36. Qe4 {[%emt 0:00:52]} g3 {[%emt 0:00:40]} 37. Rf8+ {[%emt 0:04:08]} Kb7 {[%emt 0:00:18]} 38. Rxa8 {[%emt 0:00:40]} Kxa8 {[%emt 0:00:20]} 39. Qxg6 {[%emt 0:03:20]} Be3+ {[%emt 0:00:22]} 40. Kg2 {[%emt 0:01:09]} Kb7 {[%emt 0:00:35]} 41. Nxa5+ {[%emt 0:31:35]} Kc7 {[%emt 0:30:34]} 42. hxg3 {[%emt 0:03:19]} hxg3 {[%emt 0:00:00]} 43. Qxg3 {[%emt 0:00:00]} Bf4 {[%emt 0:00:00]} 44. Qg6 {[%emt 0:00:00]} e4 {[%emt 0:00:00]} 45. dxe4 {[%emt 0:00:00]} Qe7 {[%emt 0:00:00]} 46. Nc4 {[%emt 0:00:00]} Qh4 {[%emt 0:00:00]} 47. Kf3 {[%emt 0:00:00]} Bh2 {[%emt 0:00:00]} 48. Qg7+ {[%emt 0:00:00]} Kd8 {[%emt 0:00:00]} 49. Qg8+ {[%emt 0:00:00]} Kc7 {[%emt 0:00:00]} 50. Qf7+ {[%emt 0:00:00]} Kd8 {[%emt 0:00:00]} 51. Qg8+ {[%emt 0:00:00]} Kc7 {[%emt 0:00:00]} 52. Qg4 {[%emt 0:00:00]} Qf6+ {[%emt 0:02:11]} 53. Qf5 {[%emt 0:00:00]} Qh4 {[%emt 0:00:24]} 54. Ke2 {[%emt 0:00:00]} Bf4 {[%emt 0:00:37]} 55. Qf7+ {[%emt 0:00:00]} Kd8 {[%emt 0:00:44]} 56. Qg8+ {[%emt 0:00:00]} Kc7 {[%emt 0:00:13]} 57. Qg7+ {[%emt 0:00:00]} Kd8 {[%emt 0:01:48]} 58. Qg2 {[%emt 0:00:45]} Qh5+ {[%emt 0:01:35]} 59. Qf3 {[%emt 0:01:07]} Qg5 {[%emt 0:01:02]} 60. Ne3 {[%emt 0:02:36]} Be5 {[%emt 0:00:44]} 61. Kd3 {[%emt 0:05:10]} Qg1 {[%emt 0:01:06]} 62. Nc4 {[%emt 0:03:17]} Qd4+ {[%emt 0:00:31]} 63. Ke2 {[%emt 0:00:04]} Bf6 {[%emt 0:00:22]} 64. Qe3 {[%emt 0:00:21]} 1-0

[Event "Czech Youth U16 Boys 2024"]
[Site "Kouty nad Desnou"]
[Date "2024.03.15"]
[Round "8.4"]
[White "Zrubek, Dan"]
[Black "Fizer, Marek"]
[Result "0-1"]
[ECO "B60"]
[WhiteElo "1882"]
[BlackElo "2058"]
[Annotator "RC"]
[PlyCount "86"]
[EventDate "2024.03.10"]
[EventType "swiss"]
[EventCountry "CZE"]
[SourceTitle "playchess.com"]
[Source "ChessBase"]
[SourceQuality "1"]
[TimeControl "40/5400+30:1800+30"]

1. e4 {[%emt 0:00:02]} c5 {[%emt 0:00:10]} 2. Nf3 {[%emt 0:00:09]} d6 {[%emt 0:00:08]} 3. d4 {[%emt 0:00:03]} cxd4 {[%emt 0:00:07]} 4. Nxd4 {[%emt 0:00:06]} Nf6 {[%emt 0:00:06]} 5. Nc3 {[%emt 0:00:23]} Nc6 {[%emt 0:00:13]} 6. Bg5 {[%emt 0:00:44]} Bd7 {[%emt 0:00:23]} 7. Bxf6 {[%emt 0:02:35]} gxf6 {[%emt 0:00:14]} 8. Nf5 {[%emt 0:01:28]} Rc8 {[%emt 0:19:50]} 9. g3 {[%emt 0:06:43]} Qb6 {[%emt 0:14:10]} 10. Nd5 {[%emt 0:10:26]} Qxb2 {[%emt 0:05:36]} 11. c3 {[%emt 0:11:03]} Ne5 {[%emt 0:16:15]} 12. Be2 {[%emt 0:01:59]} Bb5 {[%emt 0:04:20]} 13. Rb1 {[%emt 0:09:06]} Qxe2+ {[%emt 0:04:07]} 14. Qxe2 {[%emt 0:00:06]} Bxe2 {[%emt 0:00:05]} 15. Kxe2 {[%emt 0:00:58]} b6 {[%emt 0:01:09]} 16. a4 {[%emt 0:02:15]} Nd7 {[%emt 0:01:35]} 17. Nd4 {[%emt 0:04:37]} e6 {[%emt 0:01:39]} 18. Ne3 {[%emt 0:00:58]} Nc5 {[%emt 0:01:49]} 19. Nb5 {[%emt 0:04:29]} a6 {[%emt 0:03:29]} 20. Nd4 {[%emt 0:03:20]} Nxa4 {[%emt 0:01:17]} 21. Kd2 {[%emt 0:01:24]} Be7 {[%emt 0:06:09]} 22. c4 {[%emt 0:02:09]} Bd8 {[%emt 0:03:57]} 23. Nb3 {[%emt 0:02:05]} b5 {[%emt 0:03:05]} 24. cxb5 {[%emt 0:01:13]} axb5 {[%emt 0:00:06]} 25. Rhc1 {[%emt 0:13:35]} Rxc1 {[%emt 0:01:25]} 26. Nxc1 {[%emt 0:03:34]} Ba5+ {[%emt 0:02:24]} 27. Kc2 {[%emt 0:04:09]} Kd7 {[%emt 0:03:17]} 28. Rxb5 {[%emt 0:02:15]} Rc8+ {[%emt 0:00:14]} 29. Kd3 {[%emt 0:01:29]} Be1 {[%emt 0:02:23]} 30. Na2 {[%emt 0:04:06]} Bxf2 {[%emt 0:00:42]} 31. Ng4 {[%emt 0:02:54]} Nc5+ {[%emt 0:01:09]} 32. Ke2 {[%emt 0:01:17]} Bd4 {[%emt 0:00:41]} 33. Rb4 {[%emt 0:01:33]} Be5 {[%emt 0:01:31]} 34. Nxe5+ {[%emt 0:00:18]} fxe5 {[%emt 0:00:01]} 35. Nc3 {[%emt 0:00:50]} Ra8 {[%emt 0:01:25]} 36. Rb2 {[%emt 0:01:01]} Ra3 {[%emt 0:00:43]} 37. Rc2 {[%emt 0:00:54]} Nb3 {[%emt 0:00:42]} 38. Kd3 {[%emt 0:02:06]} Nd4 {[%emt 0:00:17]} 39. Rb2 {[%emt 0:00:30]} Kc6 {[%emt 0:00:36]} 40. Kc4 {[%emt 0:00:11]} Ra5 {[%emt 0:02:12]} 41. Rf2 {[%emt 0:30:51]} f5 {[%emt 0:30:45]} 42. exf5 {[%emt 0:00:52]} exf5 {[%emt 0:00:00]} 43. Kb4 {[%emt 0:00:00]} Rc5 {[%emt 0:00:00]} 0-1

[Event "Czech Youth U16 Boys 2024"]
[Site "Kouty nad Desnou"]
[Date "2024.03.15"]
[Round "8.5"]
[White "Zemek, Antonin"]
[Black "Juhanak, Daniel"]
[Result "0-1"]
[ECO "C02"]
[WhiteElo "1870"]
[BlackElo "2005"]
[Annotator "RC"]
[PlyCount "42"]
[EventDate "2024.03.10"]
[EventType "swiss"]
[EventCountry "CZE"]
[SourceTitle "playchess.com"]
[Source "ChessBase"]
[SourceQuality "1"]
[TimeControl "40/5400+30:1800+30"]

1. e4 {[%emt 0:01:01]} c5 {[%emt 0:00:57]} 2. c3 {[%emt 0:00:16]} e6 {[%emt 0:01:48]} 3. d4 {[%emt 0:01:54]} d5 {[%emt 0:01:43]} 4. e5 {[%emt 0:08:18]} Nc6 {[%emt 0:00:39]} 5. f4 {[%emt 0:05:12]} Nh6 {[%emt 0:07:31]} 6. Nf3 {[%emt 0:03:36]} cxd4 {[%emt 0:02:42]} 7. cxd4 {[%emt 0:04:53]} Nf5 {[%emt 0:03:07]} 8. g4 {[%emt 0:04:49]} Nfxd4 {[%emt 0:23:01]} 9. Nxd4 {[%emt 0:03:24]} Qh4+ {[%emt 0:01:52]} 10. Ke2 {[%emt 0:03:23]} Bc5 {[%emt 0:01:07]} 11. Nf3 {[%emt 0:07:19]} Qf2+ {[%emt 0:02:30]} 12. Kd3 {[%emt 0:00:10]} Bd7 {[%emt 0:17:30]} 13. Qe2 {[%emt 0:08:47]} Nxe5+ {[%emt 0:01:11]} 14. Kc2 {[%emt 0:15:01]} Nxf3 {[%emt 0:03:52]} 15. Qxf2 {[%emt 0:00:40]} Bxf2 {[%emt 0:00:14]} 16. Nc3 {[%emt 0:01:49]} Bb6 {[%emt 0:01:53]} 17. Bg2 {[%emt 0:02:04]} Nd4+ {[%emt 0:01:21]} 18. Kd1 {[%emt 0:01:27]} O-O {[%emt 0:00:43]} 19. b3 {[%emt 0:05:06]} Rac8 {[%emt 0:02:07]} 20. Bb2 {[%emt 0:00:20]} Nb5 {[%emt 0:01:24]} 21. Rc1 {[%emt 0:01:44]} Be3 {[%emt 0:00:54]} 0-1

[Event "Czech Youth U16 Boys 2024"]
[Site "Kouty nad Desnou"]
[Date "2024.03.15"]
[Round "8.6"]
[White "Hozda, Max"]
[Black "Rybackova, Lucie"]
[Result "0-1"]
[ECO "A45"]
[WhiteElo "2032"]
[BlackElo "1983"]
[Annotator "RC"]
[PlyCount "82"]
[EventDate "2024.03.10"]
[EventType "swiss"]
[EventCountry "CZE"]
[SourceTitle "playchess.com"]
[Source "ChessBase"]
[SourceQuality "1"]
[TimeControl "40/5400+30:1800+30"]

1. d4 {[%emt 0:01:30]} Nf6 {[%emt 0:00:12]} 2. Nc3 {[%emt 0:01:04]} d5 {[%emt 0:00:38]} 3. Bf4 {[%emt 0:00:09]} a6 {[%emt 0:00:36]} 4. e3 {[%emt 0:00:47]} c5 {[%emt 0:01:23]} 5. dxc5 {[%emt 0:17:08]} Qa5 {[%emt 0:08:33]} 6. Bxb8 {[%emt 0:21:03]} Rxb8 {[%emt 0:00:26]} 7. Qd4 {[%emt 0:00:09]} e6 {[%emt 0:18:27]} 8. b4 {[%emt 0:06:58]} Qc7 {[%emt 0:00:33]} 9. Nf3 {[%emt 0:01:12]} b6 {[%emt 0:01:55]} 10. cxb6 {[%emt 0:03:22]} Rxb6 {[%emt 0:00:23]} 11. Rb1 {[%emt 0:14:26]} Rc6 {[%emt 0:11:19]} 12. Rb3 {[%emt 0:01:51]} Ne4 {[%emt 0:09:06]} 13. Nd1 {[%emt 0:09:14]} Be7 {[%emt 0:08:21]} 14. Qa1 {[%emt 0:06:26]} Bf6 {[%emt 0:11:12]} 15. Nd4 {[%emt 0:00:23]} Rxc2 {[%emt 0:00:25]} 16. Bd3 {[%emt 0:03:25]} Rc1 {[%emt 0:00:40]} 17. Rb1 {[%emt 0:02:03]} Rxb1 {[%emt 0:07:52]} 18. Qxb1 {[%emt 0:00:03]} O-O {[%emt 0:00:19]} 19. O-O {[%emt 0:02:52]} Nd2 {[%emt 0:01:08]} 20. Bxh7+ {[%emt 0:01:12]} Kh8 {[%emt 0:00:08]} 21. Qc2 {[%emt 0:00:05]} Qxc2 {[%emt 0:00:23]} 22. Bxc2 {[%emt 0:00:05]} Nxf1 {[%emt 0:00:12]} 23. Kxf1 {[%emt 0:00:07]} e5 {[%emt 0:03:04]} 24. Nb3 {[%emt 0:00:17]} Be7 {[%emt 0:02:07]} 25. a3 {[%emt 0:00:24]} Bb7 {[%emt 0:02:40]} 26. Na5 {[%emt 0:00:26]} Bc8 {[%emt 0:01:56]} 27. Bd3 {[%emt 0:01:31]} Bf6 {[%emt 0:01:26]} 28. e4 {[%emt 0:00:49]} Rd8 {[%emt 0:01:54]} 29. Ke2 {[%emt 0:00:45]} dxe4 {[%emt 0:00:56]} 30. Bxe4 {[%emt 0:00:03]} Bg5 {[%emt 0:01:15]} 31. Ne3 {[%emt 0:01:52]} Bxe3 {[%emt 0:03:20]} 32. Kxe3 {[%emt 0:00:05]} Rd1 {[%emt 0:00:17]} 33. Bc6 {[%emt 0:03:09]} Rb1 {[%emt 0:02:08]} 34. Nc4 {[%emt 0:00:40]} f6 {[%emt 0:00:57]} 35. Kd2 {[%emt 0:01:40]} Be6 {[%emt 0:00:48]} 36. Na5 {[%emt 0:00:18]} Rb2+ {[%emt 0:00:32]} 37. Ke3 {[%emt 0:00:23]} Bc8 {[%emt 0:00:51]} 38. f4 {[%emt 0:00:02]} exf4+ {[%emt 0:00:17]} 39. Kxf4 {[%emt 0:00:01]} Ra2 {[%emt 0:00:39]} 40. Nc4 {[%emt 0:01:41]} Be6 {[%emt 0:00:20]} 41. Na5 {[%emt 0:03:12]} Rxa3 {[%emt 0:01:41]} 0-1

[Event "Czech Youth U16 Boys 2024"]
[Site "Kouty nad Desnou"]
[Date "2024.03.15"]
[Round "8.7"]
[White "Setina, Vaclav"]
[Black "Zelba, Lukas"]
[Result "1-0"]
[ECO "D02"]
[WhiteElo "2024"]
[BlackElo "1979"]
[Annotator "RC"]
[PlyCount "47"]
[EventDate "2024.03.10"]
[EventType "swiss"]
[EventCountry "CZE"]
[SourceTitle "playchess.com"]
[Source "ChessBase"]
[SourceQuality "1"]
[TimeControl "40/5400+30:1800+30"]

1. d4 {[%emt 0:00:08]} d5 {[%emt 0:00:03]} 2. Nf3 {[%emt 0:00:05]} e6 {[%emt 0:00:03]} 3. g3 {[%emt 0:00:05]} c6 {[%emt 0:02:44]} 4. Bg2 {[%emt 0:00:07]} f5 {[%emt 0:00:11]} 5. Nbd2 {[%emt 0:01:04]} Nf6 {[%emt 0:02:10]} 6. Ne5 {[%emt 0:01:34]} Bd6 {[%emt 0:01:34]} 7. Ndf3 {[%emt 0:00:27]} O-O {[%emt 0:02:38]} 8. Bf4 {[%emt 0:00:27]} Ne4 {[%emt 0:00:42]} 9. h4 {[%emt 0:09:11]} c5 {[%emt 0:15:02]} 10. dxc5 {[%emt 0:02:29]} Bxc5 {[%emt 0:01:33]} 11. O-O {[%emt 0:00:08]} Nc6 {[%emt 0:03:29]} 12. c4 {[%emt 0:03:33]} Qb6 {[%emt 0:18:46]} 13. e3 {[%emt 0:08:10]} Rd8 {[%emt 0:01:53]} 14. cxd5 {[%emt 0:03:34]} Rxd5 {[%emt 0:01:27]} 15. Qe2 {[%emt 0:00:27]} Bd7 {[%emt 0:03:51]} 16. Rfd1 {[%emt 0:05:53]} Nxe5 {[%emt 0:00:46]} 17. Nxe5 {[%emt 0:00:26]} Bb5 {[%emt 0:00:05]} 18. Qc2 {[%emt 0:01:04]} Rad8 {[%emt 0:02:14]} 19. Rxd5 {[%emt 0:06:57]} exd5 {[%emt 0:01:29]} 20. a4 {[%emt 0:02:25]} Ba6 {[%emt 0:09:44]} 21. a5 {[%emt 0:06:25]} Qb5 {[%emt 0:02:07]} 22. Bf1 {[%emt 0:01:57]} Qb4 {[%emt 0:01:23]} 23. Bxa6 {[%emt 0:00:37]} bxa6 {[%emt 0:00:14]} 24. Nc6 {[%emt 0:00:35]} 1-0

[Event "Czech Youth U16 Boys 2024"]
[Site "Kouty nad Desnou"]
[Date "2024.03.15"]
[Round "8.8"]
[White "Buchta, Bartolomej"]
[Black "Vysinsky, Otakar"]
[Result "1-0"]
[ECO "C89"]
[WhiteElo "1913"]
[BlackElo "1882"]
[Annotator "RC"]
[PlyCount "55"]
[EventDate "2024.03.10"]
[EventType "swiss"]
[EventCountry "CZE"]
[SourceTitle "playchess.com"]
[Source "ChessBase"]
[SourceQuality "1"]
[TimeControl "40/5400+30:1800+30"]

1. e4 {[%emt 0:00:03]} e5 {[%emt 0:00:05]} 2. Nf3 {[%emt 0:00:05]} Nc6 {[%emt 0:00:04]} 3. Bb5 {[%emt 0:00:03]} a6 {[%emt 0:00:04]} 4. Ba4 {[%emt 0:00:04]} Nf6 {[%emt 0:00:07]} 5. O-O {[%emt 0:00:08]} Be7 {[%emt 0:00:15]} 6. Re1 {[%emt 0:00:16]} b5 {[%emt 0:00:17]} 7. Bb3 {[%emt 0:00:05]} O-O {[%emt 0:00:08]} 8. c3 {[%emt 0:00:15]} d5 {[%emt 0:00:18]} 9. exd5 {[%emt 0:00:11]} Nxd5 {[%emt 0:00:03]} 10. Nxe5 {[%emt 0:00:13]} Nxe5 {[%emt 0:00:10]} 11. Rxe5 {[%emt 0:00:03]} c6 {[%emt 0:00:15]} 12. d4 {[%emt 0:00:04]} Bd6 {[%emt 0:00:18]} 13. Re1 {[%emt 0:00:04]} Qh4 {[%emt 0:00:13]} 14. g3 {[%emt 0:00:05]} Qh3 {[%emt 0:00:05]} 15. Re4 {[%emt 0:00:03]} g5 {[%emt 0:00:23]} 16. Qf1 {[%emt 0:00:04]} Qh5 {[%emt 0:00:28]} 17. a4 {[%emt 0:11:29]} Bf5 {[%emt 0:10:20]} 18. Nd2 {[%emt 0:00:08]} Rae8 {[%emt 0:02:18]} 19. f3 {[%emt 0:18:22]} Re6 {[%emt 0:23:18]} 20. axb5 {[%emt 0:04:12]} Rh6 {[%emt 0:07:04]} 21. Qf2 {[%emt 0:04:12]} axb5 {[%emt 0:01:42]} 22. Nf1 {[%emt 0:33:53]} Qg6 {[%emt 0:16:28]} 23. Re1 {[%emt 0:02:19]} Rh3 {[%emt 0:05:58]} 24. Qg2 {[%emt 0:07:24]} Rh6 {[%emt 0:06:18]} 25. Qd2 {[%emt 0:01:17]} f6 {[%emt 0:06:22]} 26. Ra6 {[%emt 0:01:26]} Rd8 {[%emt 0:08:06]} 27. Rxc6 {[%emt 0:01:00]} Bf8 {[%emt 0:00:01]} 28. Ne3 {[%emt 0:01:19]} 1-0

[Event "Czech Youth U16 Boys 2024"]
[Site "Kouty nad Desnou"]
[Date "2024.03.15"]
[Round "8.9"]
[White "Davidek, Zdenek"]
[Black "Zezula, Matej"]
[Result "1-0"]
[ECO "E04"]
[WhiteElo "2135"]
[BlackElo "1825"]
[Annotator "RC"]
[PlyCount "45"]
[EventDate "2024.03.10"]
[EventType "swiss"]
[EventCountry "CZE"]
[SourceTitle "playchess.com"]
[Source "ChessBase"]
[SourceQuality "1"]
[TimeControl "40/5400+30:1800+30"]

1. d4 {[%emt 0:00:04]} d5 {[%emt 0:00:12]} 2. c4 {[%emt 0:00:07]} e6 {[%emt 0:00:04]} 3. Nf3 {[%emt 0:00:05]} Nf6 {[%emt 0:00:06]} 4. g3 {[%emt 0:00:04]} dxc4 {[%emt 0:00:53]} 5. Bg2 {[%emt 0:00:19]} a6 {[%emt 0:00:25]} 6. O-O {[%emt 0:00:14]} Nc6 {[%emt 0:01:10]} 7. e3 {[%emt 0:08:05]} Rb8 {[%emt 0:03:04]} 8. Qe2 {[%emt 0:02:45]} b5 {[%emt 0:00:48]} 9. b3 {[%emt 0:00:07]} cxb3 {[%emt 0:01:44]} 10. axb3 {[%emt 0:00:01]} Be7 {[%emt 0:00:43]} 11. Bb2 {[%emt 0:00:34]} O-O {[%emt 0:00:52]} 12. Rc1 {[%emt 0:00:17]} Qd7 {[%emt 0:11:59]} 13. Ne1 {[%emt 0:02:45]} Bb7 {[%emt 0:05:21]} 14. Nd3 {[%emt 0:00:17]} Rfd8 {[%emt 0:05:05]} 15. Rxc6 {[%emt 0:00:43]} Bxc6 {[%emt 0:04:03]} 16. Ne5 {[%emt 0:00:21]} Bxg2 {[%emt 0:01:28]} 17. Nxd7 {[%emt 0:00:05]} Rxd7 {[%emt 0:00:09]} 18. Kxg2 {[%emt 0:00:05]} Rb6 {[%emt 0:00:23]} 19. Nd2 {[%emt 0:01:06]} Nd5 {[%emt 0:00:34]} 20. Rc1 {[%emt 0:02:50]} Bb4 {[%emt 0:00:24]} 21. Nf3 {[%emt 0:00:51]} h6 {[%emt 0:00:55]} 22. Ne5 {[%emt 0:00:32]} Re7 {[%emt 0:01:02]} 23. e4 {[%emt 0:00:20]} 1-0

[Event "Czech Youth U16 Boys 2024"]
[Site "Kouty nad Desnou"]
[Date "2024.03.15"]
[Round "8.10"]
[White "Buchtova, Viktorie"]
[Black "Mikolas, Petr"]
[Result "1/2-1/2"]
[ECO "B90"]
[WhiteElo "1874"]
[BlackElo "1957"]
[Annotator "RC"]
[PlyCount "87"]
[EventDate "2024.03.10"]
[EventType "swiss"]
[EventCountry "CZE"]
[SourceTitle "playchess.com"]
[Source "ChessBase"]
[SourceQuality "1"]
[TimeControl "40/5400+30:1800+30"]

1. e4 {[%emt 0:00:03]} c5 {[%emt 0:00:24]} 2. Nf3 {[%emt 0:00:04]} d6 {[%emt 0:00:05]} 3. d4 {[%emt 0:00:02]} cxd4 {[%emt 0:00:04]} 4. Nxd4 {[%emt 0:00:03]} Nf6 {[%emt 0:00:06]} 5. Nc3 {[%emt 0:00:04]} a6 {[%emt 0:00:04]} 6. Be3 {[%emt 0:00:50]} e5 {[%emt 0:00:36]} 7. Nb3 {[%emt 0:00:04]} Be7 {[%emt 0:00:07]} 8. f3 {[%emt 0:00:07]} Be6 {[%emt 0:00:07]} 9. Qd2 {[%emt 0:00:24]} h5 {[%emt 0:00:11]} 10. O-O-O {[%emt 0:05:04]} Nbd7 {[%emt 0:00:54]} 11. h3 {[%emt 0:06:43]} b5 {[%emt 0:13:11]} 12. Rg1 {[%emt 0:04:41]} b4 {[%emt 0:13:46]} 13. Ne2 {[%emt 0:02:25]} a5 {[%emt 0:05:50]} 14. Kb1 {[%emt 0:00:54]} a4 {[%emt 0:13:33]} 15. Nbc1 {[%emt 0:00:07]} d5 {[%emt 0:06:45]} 16. g4 {[%emt 0:12:54]} d4 {[%emt 0:07:46]} 17. Bf2 {[%emt 0:05:50]} b3 {[%emt 0:07:03]} 18. cxb3 {[%emt 0:04:13]} axb3 {[%emt 0:00:05]} 19. a3 {[%emt 0:02:38]} hxg4 {[%emt 0:07:24]} 20. hxg4 {[%emt 0:01:19]} Rc8 {[%emt 0:02:00]} 21. Qe1 {[%emt 0:12:37]} Rc2 {[%emt 0:00:59]} 22. Rd2 {[%emt 0:01:34]} Nc5 {[%emt 0:05:35]} 23. Ng3 {[%emt 0:05:43]} Qd7 {[%emt 0:06:39]} 24. Qd1 {[%emt 0:03:17]} Rh2 {[%emt 0:02:45]} 25. Rxc2 {[%emt 0:12:06]} bxc2+ {[%emt 0:00:03]} 26. Qxc2 {[%emt 0:00:06]} d3 {[%emt 0:01:44]} 27. Bxd3 {[%emt 0:10:03]} Nxd3 {[%emt 0:00:15]} 28. Nxd3 {[%emt 0:01:03]} Qb5 {[%emt 0:00:23]} 29. Nf1 {[%emt 0:02:52]} Rh3 {[%emt 0:00:57]} 30. Nd2 {[%emt 0:02:28]} Bxa3 31. Nxe5 {[%emt 0:03:43]} Qxe5 {[%emt 0:03:41]} 32. bxa3 {[%emt 0:00:01]} Qb5+ {[%emt 0:02:31]} 33. Ka1 {[%emt 0:00:01]} Qa6 {[%emt 0:00:24]} 34. Qb2 {[%emt 0:01:57]} Nxg4 {[%emt 0:00:25]} 35. Rxg4 {[%emt 0:01:11]} Bxg4 {[%emt 0:00:04]} 36. fxg4 {[%emt 0:00:02]} Rxa3+ {[%emt 0:00:15]} 37. Kb1 {[%emt 0:00:10]} Qd3+ {[%emt 0:01:38]} 38. Kc1 {[%emt 0:00:01]} f6 {[%emt 0:00:27]} 39. Kd1 {[%emt 0:01:55]} Qa6 {[%emt 0:00:31]} 40. Bd4 {[%emt 0:00:35]} Ra2 {[%emt 0:00:39]} 41. Qb3 {[%emt 0:06:30]} Qa4 {[%emt 0:04:50]} 42. Qxa4+ {[%emt 0:01:26]} Rxa4 {[%emt 0:00:04]} 43. Be3 {[%emt 0:01:11]} Kf7 {[%emt 0:01:50]} 44. Ke2 {[%emt 0:07:16]} 1/2-1/2

[Event "Czech Youth U16 Boys 2024"]
[Site "Kouty nad Desnou"]
[Date "2024.03.15"]
[Round "8.11"]
[White "Stein, Michael"]
[Black "Tegda, Vojtech"]
[Result "1/2-1/2"]
[ECO "C50"]
[WhiteElo "1883"]
[BlackElo "1936"]
[Annotator "RC"]
[PlyCount "62"]
[EventDate "2024.03.10"]
[EventType "swiss"]
[EventCountry "CZE"]
[SourceTitle "playchess.com"]
[Source "ChessBase"]
[SourceQuality "1"]
[TimeControl "40/5400+30:1800+30"]

1. e4 {[%emt 0:00:01]} e5 {[%emt 0:00:06]} 2. Nf3 {[%emt 0:00:13]} Nc6 {[%emt 0:00:08]} 3. Bc4 {[%emt 0:00:05]} Nf6 {[%emt 0:00:26]} 4. d3 {[%emt 0:00:04]} Bc5 {[%emt 0:00:11]} 5. O-O {[%emt 0:00:16]} d6 {[%emt 0:01:10]} 6. c3 {[%emt 0:00:13]} O-O {[%emt 0:02:38]} 7. Bb3 {[%emt 0:00:32]} Be6 {[%emt 0:01:21]} 8. Bc2 {[%emt 0:01:36]} Bb6 {[%emt 0:01:48]} 9. h3 {[%emt 0:06:21]} d5 {[%emt 0:06:11]} 10. Ng5 {[%emt 0:09:13]} Bd7 {[%emt 0:04:10]} 11. exd5 {[%emt 0:05:20]} Nxd5 {[%emt 0:01:17]} 12. Qf3 {[%emt 0:03:04]} Nf6 {[%emt 0:00:47]} 13. Nd2 {[%emt 0:02:40]} h6 {[%emt 0:06:14]} 14. Nge4 {[%emt 0:00:36]} Nxe4 {[%emt 0:03:00]} 15. Qxe4 {[%emt 0:03:38]} Be6 {[%emt 0:05:17]} 16. Bb3 {[%emt 0:07:50]} Bxb3 {[%emt 0:03:14]} 17. axb3 {[%emt 0:03:55]} Qf6 {[%emt 0:01:19]} 18. Nc4 {[%emt 0:01:33]} Rad8 {[%emt 0:02:49]} 19. Be3 {[%emt 0:06:30]} Qg6 {[%emt 0:10:54]} 20. Bxb6 {[%emt 0:05:54]} Qxe4 {[%emt 0:05:44]} 21. dxe4 {[%emt 0:00:17]} axb6 {[%emt 0:00:12]} 22. Rfd1 {[%emt 0:00:44]} f6 {[%emt 0:00:58]} 23. b4 {[%emt 0:02:37]} Rxd1+ {[%emt 0:05:13]} 24. Rxd1 {[%emt 0:00:08]} Rd8 {[%emt 0:00:34]} 25. Rxd8+ {[%emt 0:03:03]} Nxd8 {[%emt 0:00:01]} 26. Ne3 {[%emt 0:00:11]} c6 {[%emt 0:06:05]} 27. g3 {[%emt 0:01:21]} b5 {[%emt 0:02:11]} 28. Kf1 {[%emt 0:00:33]} Kf7 {[%emt 0:00:54]} 29. Ke2 {[%emt 0:02:19]} g6 {[%emt 0:00:45]} 30. h4 {[%emt 0:07:59]} Ke6 {[%emt 0:02:33]} 31. Kd3 {[%emt 0:01:27]} Nf7 {[%emt 0:01:11]} 1/2-1/2